bitfinex/quotes_SOLUSD_20250815
["timestamp","ask_amount","ask_price","bid_price","bid_amount"]
[1755276669680,0.65,185.84,185.82,39.46]
[1755276670807,6.03099383,185.84,185.82,39.46]
[1755276671282,0.65,185.84,185.82,39.46]
[1755276671478,26.0,185.87,185.83,8.80485843]
[1755276671679,26.65,185.87,185.84,39.46]
[1755276671992,0.65,185.86,185.85,39.46]
[1755276672201,4.65800855,185.86,185.85,39.46]
[1755276672500,5.37987068,185.88,185.85,39.46]
[1755276672668,13.46294074,185.87,185.85,39.46]
[1755276672872,8.98731386,185.88,185.83,39.46]
[1755276672873,13.46313977,185.86,185.83,39.46]
[1755276673096,0.65,185.85,185.83,39.46]
[1755276673294,5.38097287,185.84,185.83,39.46]
[1755276673498,0.65,185.84,185.83,39.46]
[1755276674570,5.38046882,185.86,185.83,39.46]
[1755276674767,0.65,185.85,185.83,39.46]
[1755276674971,5.38046882,185.86,185.83,39.46]
[1755276675172,0.65,185.85,185.83,39.46]
[1755276676097,0.7,185.84,185.83,39.46]
[1755276676298,6.08046882,185.86,185.83,39.46]
[1755276676604,14.94461282,185.89,185.84,8.80485843]
[1755276676789,7.62100903,185.88,185.85,39.46]
[1755276677108,0.06,185.91,185.88,41.10621557]
[1755276677274,0.06,185.93,185.91,41.10621557]
[1755276677477,0.59195438,185.99,185.93,33.93050427]
[1755276677809,0.59195438,185.99,185.98,8.80485843]
[1755276677984,0.59195438,185.99,185.98,48.26485843]
[1755276678875,5.96858753,185.99,185.98,48.26485843]
[1755276679073,1.29195438,185.99,185.98,48.26485843]
[1755276679292,8.80485843,186.04,186.0,0.40804562]
[1755276679497,8.80485843,186.04,186.0,39.86804562]
[1755276679685,26.0,186.01,186.0,39.86804562]
[1755276679885,26.7,186.01,186.0,0.40804562]
[1755276680783,32.07605505,186.01,186.0,0.40804562]
[1755276680986,6.07605505,186.01,186.0,0.40804562]
[1755276681493,32.07605505,186.01,186.0,0.40804562]
[1755276682411,5.37605505,186.01,186.0,0.40804562]
[1755276683237,6.07605505,186.01,186.0,0.40804562]
[1755276683787,5.37583866,186.02,186.0,9.21290405]
[1755276684011,5.37540034,186.04,186.01,8.80485843]
[1755276684501,0.7,186.03,186.0,9.21290405]
[1755276684709,0.7,186.02,186.0,9.21290405]
[1755276685118,0.06,186.05,186.01,48.44485843]
[1755276685287,0.06,186.05,186.04,8.80485843]
[1755276685491,0.06,186.05,186.04,48.24485843]
[1755276687923,0.06,186.05,186.04,39.44]
[1755276688225,26.76,186.05,186.04,39.44]
[1755276688428,0.06,186.05,186.04,48.24485843]
[1755276690406,0.06,186.05,186.04,39.44]
[1755276690607,0.76,186.05,186.04,39.44]
[1755276691498,0.06,186.05,186.04,39.44]
[1755276692120,4.74542937,186.05,186.04,39.44]
[1755276692422,10.12032859,186.05,186.04,39.44]
[1755276694608,4.04542937,186.05,186.04,48.24485843]
[1755276694808,0.06,186.05,186.04,48.24485843]
[1755276695011,4.04553423,186.05,186.04,48.24485843]
[1755276695216,4.04494797,186.05,186.04,48.24485843]
[1755276695931,10.11984719,186.05,186.04,39.44]
[1755276697525,4.74494797,186.05,186.04,39.44]
[1755276697731,10.11984719,186.05,186.04,39.44]
[1755276698035,9.41984719,186.05,186.04,39.44]
[1755276698250,4.04494797,186.05,186.04,39.44]
[1755276698615,9.41984719,186.05,186.04,39.44]
[1755276698815,10.11984719,186.05,186.04,39.44]
[1755276700231,22.51235828,186.05,186.04,39.44]
[1755276700440,26.0,185.98,185.93,16.184653]
[1755276700614,10.25721692,185.97,185.93,16.184653]
[1755276700805,3.987505,185.96,185.93,45.00226895]
[1755276701011,3.987505,185.95,185.94,5.57226895]
[1755276701241,3.98788374,185.95,185.93,0.03]
[1755276701422,3.98788374,185.94,185.93,39.43]
[1755276702032,9.36596269,185.94,185.93,39.43]
[1755276703111,3.98788374,185.94,185.93,48.21061885]
[1755276703317,26.0,185.99,185.93,48.81061885]
[1755276703537,3.9877133,185.98,185.95,8.78061885]
[1755276703740,3.9877133,185.97,185.96,39.4]
[1755276704409,26.0,186.0,185.96,48.18061885]
[1755276704612,5.37605505,186.01,185.97,8.78061885]
[1755276704838,26.0,186.04,186.0,8.78061885]
[1755276705113,3.98714954,186.03,186.02,8.78061885]
[1755276705339,3.98714954,186.03,186.01,48.20061885]
[1755276705540,3.98714954,186.02,186.01,48.20061885]
[1755276706045,3.98714954,186.02,186.01,48.80061885]
[1755276706217,0.06,186.05,186.01,48.80061885]
[1755276706417,0.06,186.05,186.03,8.78061885]
[1755276706754,0.06,186.05,186.04,48.18061885]
[1755276707226,0.06,186.05,186.04,39.4]
[1755276707612,6.09489922,186.05,186.04,39.4]
[1755276707808,9.42100144,186.05,186.04,39.4]
[1755276708038,0.06,186.05,186.04,48.18061885]
[1755276708340,0.06,186.05,186.04,39.4]
[1755276710115,0.06,186.05,186.04,48.18061885]
[1755276710311,0.06,186.05,186.04,39.4]
[1755276710513,0.72,186.05,186.03,39.4]
[1755276710826,4.64490816,186.04,186.03,39.4]
[1755276711210,10.02009629,186.04,186.03,39.4]
[1755276711617,18.80071514,186.04,186.01,39.4]
[1755276711818,4.64490816,186.03,186.0,39.4]
[1755276712045,0.66,186.03,186.0,39.4]
[1755276712253,0.66,186.02,186.0,39.4]
[1755276712824,14.15580698,186.04,186.0,39.4]
[1755276713028,4.64649673,186.03,186.0,39.4]
[1755276713251,0.66,186.03,186.0,39.4]
[1755276713434,5.37576604,186.02,186.0,39.4]
[1755276714047,5.37555648,186.03,186.0,39.4]
[1755276714236,26.0,186.04,186.02,8.78061885]
[1755276714443,3.98984941,186.03,186.02,48.18061885]
[1755276714647,26.0,186.04,186.02,48.18061885]
[1755276715144,0.06,186.05,186.03,8.78061885]
[1755276715323,30.05123973,186.05,186.04,39.4]
[1755276715528,30.05123973,186.05,186.04,48.18061885]
[1755276715722,26.06,186.05,186.04,48.18061885]
[1755276715924,0.06,186.05,186.04,40.0]
[1755276716144,0.06,186.05,186.04,39.4]
[1755276716628,0.06,186.05,186.04,40.0]
[1755276716831,0.06,186.05,186.04,48.78061885]
[1755276717244,0.06,186.05,186.04,48.18061885]
[1755276717426,0.06,186.05,186.04,54.15580698]
[1755276718748,0.06,186.05,186.04,48.78061885]
[1755276719455,0.06,186.05,186.04,40.0]
[1755276719637,0.06,186.05,186.04,48.78061885]
[1755276719961,0.06,186.05,186.04,54.15580698]
[1755276722650,0.72,186.05,186.04,8.78061885]
[1755276722858,8.3406149,186.05,186.04,39.4]
[1755276723030,8.34067208,186.05,186.04,39.4]
[1755276723232,8.34067208,186.05,186.01,8.78061885]
[1755276723552,5.37547707,186.03,186.02,39.38]
[1755276723753,12.99614915,186.03,186.02,39.38]
[1755276723962,13.65614915,186.03,186.02,39.38]
[1755276724742,13.65614915,186.03,185.98,8.81061885]
[1755276724943,8.28067208,186.02,185.99,39.38]
[1755276725141,8.28067208,186.01,185.99,39.38]
[1755276725460,12.99701616,186.0,185.99,39.38]
[1755276725661,13.65701616,186.0,185.99,39.38]
[1755276726169,7.62067208,186.0,185.99,39.38]
[1755276726337,12.99701616,186.0,185.99,39.38]
[1755276726532,13.65701616,186.0,185.99,39.38]
[1755276727030,12.99701616,186.0,185.99,39.38]
[1755276727236,7.62067208,186.0,185.99,48.16061885]
[1755276727449,7.62067208,186.0,185.99,39.38]
[1755276727641,13.65701616,186.0,185.99,39.38]
[1755276727835,22.43763501,186.0,185.99,39.38]
[1755276728276,22.43763501,186.0,185.98,0.03]
[1755276728554,8.28361794,185.99,185.98,0.03]
[1755276729635,13.66025109,185.99,185.98,0.03]
[1755276731639,13.00025109,185.99,185.98,0.03]
[1755276732236,13.66025109,185.99,185.98,0.03]
[1755276732842,9.39019845,185.99,185.98,0.03]
[1755276733155,158.9,186.03,185.98,9.41061885]
[1755276733342,7.62172534,186.02,185.99,48.16061885]
[1755276733539,158.9,186.03,185.99,48.16061885]
[1755276733540,159.56,186.03,186.0,8.78061885]
[1755276733844,8.28160214,186.02,185.99,48.16061885]
[1755276734041,7.62160214,186.01,185.99,48.16061885]
[1755276734247,3.61049269,186.01,185.99,48.16061885]
[1755276734632,0.66,186.02,185.99,44.94765835]
[1755276734837,7.62229444,186.01,185.99,39.38]
[1755276735039,3.6107241,186.01,185.99,39.38]
[1755276735340,4.01179163,186.0,185.99,39.38]
[1755276735555,8.34281827,186.0,185.99,39.38]
[1755276736738,8.34281827,186.0,185.98,0.03]
[1755276736950,7.62281827,185.99,185.98,0.03]
[1755276737168,8.34281827,185.99,185.98,0.03]
[1755276737367,10.10842478,185.99,185.98,0.03]
[1755276737571,13.71945142,185.99,185.98,0.03]
[1755276738751,22.49585367,185.99,185.98,0.03]
[1755276739265,31.37721137,185.97,185.96,0.03]
[1755276739475,23.88261782,185.95,185.93,0.03]
[1755276739653,26.0,185.92,185.91,0.03]
[1755276739854,42.39922052,185.92,185.91,0.03]
[1755276740060,43.11922052,185.92,185.91,0.03]
[1755276741481,48.497878,185.92,185.91,0.03]
[1755276741668,63.60409357,185.92,185.91,0.03]
[1755276741871,67.61208092,185.92,185.91,1e-08]
[1755276742053,63.60409357,185.92,185.91,1e-08]
[1755276742678,102.98409357,185.92,185.91,1e-08]
[1755276743053,87.877878,185.92,185.91,1e-08]
[1755276743775,4.01179163,185.92,185.91,1e-08]
[1755276743987,6.09780736,185.95,185.91,1e-08]
[1755276744151,0.72,185.97,185.92,8.77640225]
[1755276744495,5.37720247,185.98,185.94,8.77640225]
[1755276744695,21.54180118,185.99,185.95,8.77640225]
[1755276744980,9.49640225,185.98,185.93,8.77640225]
[1755276745146,14.15310343,185.99,185.94,8.77640225]
[1755276745347,14.15310343,185.99,185.91,1e-08]
[1755276745348,8.77640225,185.95,185.91,1e-08]
[1755276745577,5.37807895,185.94,185.91,1e-08]
[1755276745752,14.8744812,185.94,185.91,1e-08]
[1755276746881,26.0,185.96,185.93,8.77640225]
[1755276747081,26.0,185.95,185.94,8.77640225]
[1755276747291,26.0,185.97,185.91,1e-08]
[1755276747468,0.72,185.94,185.91,1e-08]
[1755276747788,6.0982482,185.94,185.91,1e-08]
[1755276748080,0.72,185.93,185.91,1e-08]
[1755276749288,5.3782482,185.94,185.91,1e-08]
[1755276749467,14.15465045,185.94,185.91,1e-08]
[1755276749647,14.87465045,185.94,185.91,1e-08]
[1755276749854,5.3782482,185.94,185.91,1e-08]
[1755276750157,5.3782482,185.94,185.91,8.77640226]
[1755276750570,5.3782482,185.94,185.91,1e-08]
[1755276750814,8.77640225,185.92,185.91,1e-08]
[1755276751275,26.0,185.92,185.91,1e-08]
[1755276751478,35.49640225,185.92,185.91,1e-08]
[1755276751787,40.87505973,185.92,185.91,1e-08]
[1755276752164,36.09641798,185.92,185.91,1e-08]
[1755276752363,40.15505973,185.92,185.91,1e-08]
[1755276752685,132.9,185.95,185.91,8.77640226]
[1755276752896,132.9,185.95,185.92,8.77640225]
[1755276753056,132.9,185.95,185.91,8.77640226]
[1755276753679,0.72,185.94,185.91,1e-08]
[1755276753883,132.9,185.95,185.92,0.63]
[1755276754190,0.72,186.0,185.94,8.77640225]
[1755276754382,0.72,186.0,185.96,8.77640225]
[1755276754999,132.9,186.02,185.98,8.77640225]
[1755276755181,132.9,186.02,185.99,8.77640225]
[1755276755501,132.9,186.02,185.98,8.77640225]
[1755276756403,0.72,186.01,185.97,8.77640225]
[1755276757277,0.72,186.0,185.96,8.77640225]
[1755276757499,12.37401073,186.01,185.95,8.77640225]
[1755276757680,6.0967608,185.99,185.95,8.77640225]
[1755276759010,0.72,185.98,185.94,39.38]
[1755276759383,5.3767608,185.99,185.95,8.77640225]
[1755276759602,6.09641567,186.0,185.95,8.77640225]
[1755276759904,0.72,185.99,185.95,8.77640225]
[1755276760075,0.72,185.99,185.94,39.38]
[1755276760275,0.72,185.99,185.94,48.15640225]
[1755276760507,0.72,185.98,185.94,48.15640225]
[1755276760706,8.77640225,185.96,185.91,1e-08]
[1755276760926,8.77640225,185.96,185.91,8.77640226]
[1755276761210,0.72,185.97,185.92,9.40640225]
[1755276761416,0.72,185.97,185.92,8.77640225]
[1755276761707,26.72,185.97,185.92,8.77640225]
[1755276761890,32.09729751,185.97,185.92,8.77640225]
[1755276762094,26.0,185.99,185.96,8.77640225]
[1755276762301,26.0,185.99,185.97,8.77640225]
[1755276762504,132.96,186.02,185.94,0.63]
[1755276762713,7.59988354,186.01,185.94,0.63]
[1755276762886,3.99997387,186.0,185.94,0.63]
[1755276763783,12.77637612,185.99,185.91,6.00877646]
[1755276763984,5.37721137,185.97,185.91,6.00877646]
[1755276764184,8.77640225,185.95,185.92,39.36]
[1755276764406,8.77640225,185.93,185.91,1e-08]
[1755276764585,26.72,185.94,185.91,1e-08]
[1755276764790,0.72,185.92,185.91,1e-08]
[1755276764991,9.49640225,185.92,185.91,1e-08]
[1755276765407,0.72,185.92,185.91,1e-08]
[1755276765606,9.49640225,185.92,185.91,1e-08]
[1755276765917,13.50112543,185.92,185.91,1e-08]
[1755276766079,22.4840674,185.92,185.91,1e-08]
[1755276767012,21.76646672,185.92,185.91,1e-08]
[1755276767178,4.00605386,185.92,185.91,1e-08]
[1755276767382,5.37841818,185.93,185.91,1e-08]
[1755276767600,4.00757754,185.92,185.91,1e-08]
[1755276768510,5.37750053,185.96,185.91,8.77640226]
[1755276768710,7.61552468,185.95,185.92,8.77640225]
[1755276768889,3.60711228,185.95,185.92,9.40640225]
[1755276769214,3.60711228,185.95,185.92,8.77640225]
[1755276769508,5.37663315,185.99,185.94,8.77640225]
[1755276769711,7.61743996,185.98,185.95,8.77640225]
[1755276769913,7.61743996,185.97,185.95,0.63]
[1755276770116,3.60749629,185.99,185.96,8.77640225]
[1755276770412,8.77640225,185.97,185.92,48.13640225]
[1755276770588,0.69,185.96,185.92,39.36]
[1755276770778,3.60816597,185.97,185.92,48.13640225]
[1755276770981,32.06669775,185.99,185.95,8.77640225]
[1755276771195,3.00939121,185.98,185.94,8.77640225]
[1755276771413,0.69,185.98,185.94,8.77640225]
[1755276771606,3.60869878,185.97,185.94,8.77640225]
[1755276771990,0.69,185.98,185.94,8.77640225]
[1755276772286,132.96,186.02,185.97,14.15344042]
[1755276772485,132.96,186.02,186.01,8.77640225]
[1755276772690,136.56793478,186.02,185.99,8.77640225]
[1755276772902,3.60797314,186.01,185.98,48.13640225]
[1755276773115,3.60797314,186.01,185.99,8.77640225]
[1755276773411,132.96,186.02,186.0,8.77640225]
[1755276774386,132.96,186.02,185.99,8.77640225]
[1755276774614,133.65,186.02,185.99,8.77640225]
[1755276775420,138.33582468,186.02,185.98,49.36]
[1755276775594,138.33582468,186.02,185.98,10.0]
[1755276775595,13.07291336,186.01,185.98,10.0]
[1755276775782,9.46640225,186.0,185.98,10.0]
[1755276776111,0.69,185.99,185.98,10.0]
[1755276777416,8.98340307,186.0,185.98,10.0]
[1755276777922,0.69,185.99,185.98,10.0]
[1755276778389,9.67340307,186.0,185.98,10.0]
[1755276778806,3.60685983,185.99,185.98,10.0]
[1755276779010,9.67349298,185.99,185.98,10.0]
[1755276779317,9.67423548,185.99,185.98,10.0]
[1755276779510,4.29760233,185.99,185.98,10.0]
[1755276779713,5.37641444,186.0,185.98,10.0]
[1755276779883,8.98400277,186.0,185.98,10.0]
[1755276780243,0.06,186.02,185.99,8.77640225]
[1755276780515,0.06,186.02,186.0,8.77640225]
[1755276781120,4.35687281,186.02,185.98,10.0]
[1755276781312,3.66687281,186.02,185.99,8.77640225]
[1755276781686,4.35687281,186.02,185.98,18.77640225]
[1755276781912,4.35687281,186.02,185.99,8.77640225]
[1755276781913,3.66687281,186.02,185.99,8.77640225]
[1755276782311,0.06,186.02,185.98,18.77640225]
[1755276782513,3.66687281,186.02,185.98,18.77640225]
[1755276782821,5.37634408,186.0,185.98,10.0]
[1755276783122,0.69,185.99,185.98,10.0]
[1755276783300,26.0,186.01,185.98,18.77640225]
[1755276783812,0.06,186.02,186.0,8.77640225]
[1755276784016,0.06,186.02,186.01,8.77640225]
[1755276784638,0.06,186.02,186.01,9.40640225]
[1755276785133,0.06,186.02,186.01,8.77640225]
[1755276785820,0.06,186.02,186.0,8.77640225]
[1755276786807,0.06,186.02,186.01,8.77640225]
[1755276787426,0.06,186.02,186.01,14.1524573]
[1755276787819,0.06,186.02,186.01,14.7824573]
[1755276788713,0.06,186.02,186.01,9.40640225]
[1755276789028,0.06,186.02,186.01,54.1024573]
[1755276789237,0.06,186.02,186.01,69.74627837]
[1755276790933,0.06,186.02,186.01,53.4724573]
[1755276791128,0.06,186.02,186.01,54.1024573]
[1755276791934,0.06,186.02,186.01,54.6400628]
[1755276793816,0.06,186.02,186.01,53.4724573]
[1755276794219,0.06,186.02,186.01,48.09640225]
[1755276795348,0.06,186.02,186.01,39.32]
[1755276795652,0.74,186.02,186.01,39.32]
[1755276795943,0.74,186.02,186.01,48.09640225]
[1755276796148,0.06,186.02,186.01,48.09640225]
[1755276797135,0.06,186.02,186.01,54.1024573]
[1755276797357,0.06,186.02,186.01,53.4724573]
[1755276797722,0.06,186.02,186.01,39.32]
[1755276797945,0.74,186.02,186.01,39.32]
[1755276800130,0.74,186.02,186.01,48.09640225]
[1755276800446,0.06,186.02,186.01,48.09640225]
[1755276801053,0.06,186.02,186.01,54.1024573]
[1755276801246,0.06,186.02,186.01,45.32605505]
[1755276801427,0.06,186.02,186.01,39.32]
[1755276801747,0.06,186.02,186.01,53.4724573]
[1755276802244,0.06,186.02,186.01,54.1024573]
[1755276802422,0.06,186.02,186.01,53.4724573]
[1755276803340,0.06,186.02,186.01,48.09640225]
[1755276804030,0.06,186.02,186.01,48.07640225]
[1755276805034,0.74,186.02,186.01,48.07640225]
[1755276805862,0.74,186.02,186.01,39.3]
[1755276808152,0.06,186.02,186.01,39.3]
[1755276809257,0.06,186.02,185.98,10.0]
[1755276809258,14.8921854,186.02,185.98,10.0]
[1755276809429,8.77640225,186.0,185.98,10.0]
[1755276809634,0.68,185.99,185.98,49.3]
[1755276810151,5.37634408,186.0,185.98,49.3]
[1755276810350,8.98123408,186.0,185.98,49.3]
[1755276810555,0.68,185.99,185.98,49.3]
[1755276811335,4.28489,185.99,185.98,49.3]
[1755276811546,6.05609467,186.01,185.98,49.3]
[1755276811746,8.29743392,186.0,185.98,49.3]
[1755276811955,0.68,185.99,185.98,49.3]
[1755276812154,9.66537024,185.99,185.98,49.3]
[1755276812340,13.67639977,185.99,185.98,49.3]
[1755276813364,13.67639977,185.99,185.98,10.0]
[1755276813559,13.67639977,185.99,185.98,49.3]
[1755276814057,22.45480168,185.99,185.98,49.3]
[1755276814439,13.67839943,185.99,185.98,49.3]
[1755276815364,22.45480168,185.99,185.98,49.3]
[1755276815545,22.45480168,185.99,185.98,10.0]
[1755276815744,13.67839943,185.99,185.98,10.0]
[1755276816257,13.67839943,185.99,185.98,18.77640225]
[1755276816258,7.62176628,185.99,185.98,18.77640225]
[1755276816437,3.60873709,185.99,185.98,19.40640225]
[1755276816638,3.61309849,186.0,185.98,24.78332449]
[1755276816866,3.61284922,186.01,185.99,48.07640225]
[1755276817052,0.06,186.02,186.0,8.77640225]
[1755276817247,0.06,186.02,186.01,48.07640225]
[1755276817448,3.67270163,186.02,186.01,48.07640225]
[1755276817766,0.06,186.02,186.01,48.70640225]
[1755276817952,0.06,186.02,186.01,54.0824573]
[1755276818138,0.06,186.02,186.01,44.67605505]
[1755276818338,0.06,186.02,186.01,53.4524573]
[1755276818748,0.06,186.02,186.01,48.07640225]
[1755276818962,3.67272447,186.02,186.01,39.3]
[1755276819367,3.67272447,186.02,186.01,48.70640225]
[1755276819549,0.06,186.02,186.01,48.07640225]
[1755276819743,7.68689582,186.02,186.01,48.07640225]
[1755276819966,0.06,186.02,186.01,48.07640225]
[1755276820672,0.74,186.02,186.01,48.07640225]
[1755276821171,0.06,186.02,186.01,48.07640225]
[1755276822343,0.06,186.02,186.0,8.77640225]
[1755276822545,0.06,186.02,186.01,39.28]
[1755276822774,8.36935335,186.02,186.01,39.28]
[1755276823080,7.68935335,186.02,186.01,39.28]
[1755276823674,7.68935335,186.02,186.01,48.05640225]
[1755276824578,7.68935335,186.02,186.01,39.28]
[1755276824780,0.06,186.02,186.01,44.84660857]
[1755276824971,7.6910544,186.02,186.01,39.28]
[1755276825278,7.6910544,186.02,186.01,44.84660857]
[1755276825465,7.69144892,186.02,186.01,39.28]
[1755276825655,7.69144892,186.02,186.01,44.84660857]
[1755276826665,7.69144892,186.02,186.01,39.28]
[1755276826864,7.69144892,186.02,186.01,44.84660857]
[1755276827578,7.69144892,186.02,186.01,45.47660857]
[1755276827784,7.69144892,186.02,186.01,44.84660857]
[1755276827958,7.69144892,186.02,186.01,39.28]
[1755276828278,7.69144892,186.02,186.01,44.84660857]
[1755276828580,0.06,186.02,186.01,44.84660857]
[1755276829778,0.06,186.02,186.01,39.28]
[1755276829991,0.06,186.02,186.01,44.84660857]
[1755276830194,0.06,186.02,186.01,50.22266362]
[1755276831814,0.06,186.02,186.01,71.52548776]
[1755276832098,0.06,186.04,186.03,5.56660857]
[1755276832293,0.06,186.04,186.03,39.26]
[1755276832501,0.06,186.04,186.03,44.82660857]
[1755276832677,0.06,186.04,186.03,45.45660857]
[1755276834080,0.06,186.04,186.03,50.83208564]
[1755276836615,0.06,186.04,186.03,11.57208564]
[1755276836780,0.06,186.04,186.03,50.83208564]
[1755276837579,0.06,186.04,186.03,66.47584891]
[1755276837979,1e-08,186.04,186.03,66.47584891]
[1755276838216,4.4992886,186.18,186.06,41.10621557]
[1755276838527,2.153143,186.2,186.06,41.10621557]
[1755276838528,0.67,186.21,186.17,5.56660857]
[1755276838703,7.61443318,186.2,186.18,39.36]
[1755276838895,0.67,186.2,186.19,5.56660857]
[1755276839092,4.67729121,186.2,186.18,39.36]
[1755276839282,5.36947323,186.24,186.18,39.36]
[1755276839489,7.60975127,186.23,186.18,39.36]
[1755276839709,4.00297422,186.22,186.18,39.36]
[1755276840010,4.00297422,186.21,186.2,5.56660857]
[1755276840184,29.60677705,186.25,186.2,45.02660857]
[1755276840384,7.60951797,186.24,186.22,5.56660857]
[1755276840595,4.00274092,186.23,186.14,6.04230041]
[1755276840795,4.00274092,186.22,186.15,39.46]
[1755276841000,5.37007439,186.22,186.14,6.04205421]
[1755276841211,9.5691776,186.21,186.15,39.46]
[1755276841405,4.00256903,186.2,186.17,5.56660857]
[1755276841617,6.04007439,186.22,186.18,45.02660857]
[1755276841807,0.67,186.21,186.18,39.46]
[1755276842122,0.67,186.2,186.18,39.46]
[1755276842693,0.67,186.22,186.19,5.56660857]
[1755276842909,0.67,186.21,186.2,39.46]
[1755276843305,26.67,186.21,186.07,13.43556878]
[1755276843506,6.23660857,186.2,186.15,5.56660857]
[1755276843810,0.67,186.2,186.17,5.56660857]
[1755276844013,0.67,186.19,186.18,39.46]
[1755276844920,37.60746629,186.19,186.08,6.236609]
[1755276845122,5.56660857,186.15,186.1,5.56660857]
[1755276845321,0.67,186.14,186.09,39.48]
[1755276845616,0.67,186.13,186.1,5.56660857]
[1755276845790,26.0,186.16,186.11,5.56660857]
[1755276845791,32.23660857,186.16,186.11,5.56660857]
[1755276846114,0.67,186.15,186.12,39.48]
[1755276846297,5.37230041,186.14,186.11,39.48]
[1755276846502,5.37230041,186.14,186.11,45.04660857]
[1755276846826,6.04230041,186.14,186.11,48.2420241]
[1755276847522,0.67,186.21,186.13,8.7620241]
[1755276847705,26.0,186.21,186.19,8.7620241]
[1755276847897,6.0394158,186.24,186.19,48.2420241]
[1755276848089,5.3694158,186.24,186.19,48.2420241]
[1755276848291,0.67,186.23,186.19,48.2420241]
[1755276848491,8.7620241,186.2,186.14,39.46]
[1755276848715,9.4320241,186.19,186.14,48.2220241]
[1755276849019,8.7620241,186.17,186.14,39.46]
[1755276849400,0.67,186.16,186.14,39.46]
[1755276849922,8.7620241,186.15,186.09,0.67]
[1755276850092,0.67,186.15,186.1,39.44]
[1755276850289,6.04230041,186.14,186.1,48.2020241]
[1755276850722,6.04230041,186.14,186.1,8.7620241]
[1755276850919,6.04230041,186.14,186.11,39.44]
[1755276851293,6.04278886,186.13,186.11,39.44]
[1755276852021,14.80481296,186.13,186.11,39.44]
[1755276852435,9.4320241,186.12,186.04,0.67]
[1755276852737,8.7620241,186.1,186.05,48.1820241]
[1755276852903,9.4320241,186.1,186.05,48.1820241]
[1755276853104,0.67,186.1,186.05,48.1820241]
[1755276853441,26.0,186.07,186.01,0.67]
[1755276853599,8.7620241,186.06,186.01,9.4320241]
[1755276853803,9.4320241,186.06,186.02,39.4]
[1755276854032,0.67,186.06,186.05,0.03]
[1755276854212,9.4320241,186.06,186.05,0.03]
[1755276854615,14.80663444,186.06,186.05,0.03]
[1755276855425,5.37461034,186.06,186.05,0.03]
[1755276856330,5.37374388,186.09,186.05,0.03]
[1755276856729,8.7620241,186.08,186.05,0.03]
[1755276856938,9.4320241,186.08,186.05,0.03]
[1755276857921,14.80626664,186.08,186.05,0.03]
[1755276858127,4.30502054,186.13,186.07,8.7620241]
[1755276858128,8.7620241,186.13,186.07,8.7620241]
[1755276858329,8.7620241,186.13,186.08,48.1020241]
[1755276858523,26.0,186.11,186.08,48.1020241]
[1755276858734,0.67,186.12,186.08,48.1020241]
[1755276859446,168.6620241,186.13,186.08,48.1020241]
[1755276859447,133.9,186.13,186.1,8.7620241]
[1755276859753,0.67,186.15,186.11,39.32]
[1755276859754,31.3720924,186.15,186.11,39.32]
[1755276859949,365.52600157,186.2,186.11,39.32]
[1755276859950,14.13395956,186.16,186.11,39.32]
[1755276860257,9.4320241,186.14,186.11,39.32]
[1755276860546,0.67,186.14,186.11,39.32]
[1755276861044,8.96629597,186.16,186.11,39.32]
[1755276861045,0.67,186.16,186.11,39.32]
[1755276861247,14.13353863,186.17,186.12,8.7620241]
[1755276861452,3.99439357,186.16,186.12,8.7620241]
[1755276861656,5.37121848,186.18,186.13,8.7620241]
[1755276861854,3.99435082,186.17,186.13,8.7620241]
[1755276862025,5.37147797,186.17,186.12,0.7]
[1755276862353,9.4320241,186.17,186.12,6.07284469]
[1755276862524,9.4320241,186.17,186.12,14.83486879]